bitfinex/quotes_ETHUSD_20250428
["timestamp","ask_amount","ask_price","bid_price","bid_amount"]
[1745800730791,0.63667711,1780.0,1779.8,0.14140482]
[1745800731165,9.23344662,1779.9,1779.5,1.1239]
[1745800731374,5.90136262,1779.9,1779.5,1.1239]
[1745800731574,5.90136262,1779.9,1779.6,0.14780964]
[1745800734989,5.90136262,1779.8,1779.6,0.14780964]
[1745800742482,5.90136262,1779.8,1779.7,1.0829]
[1745800742683,5.90136262,1779.8,1779.7,1.86738675]
[1745800742925,5.90136262,1779.8,1779.7,11.23496068]
[1745800743099,0.63667711,1781.5,1780.0,1.0829]
[1745800743100,5.90136262,1780.1,1780.0,1.0829]
[1745800745713,11.92836262,1780.7,1780.0,1.0829]
[1745800745917,5.90136262,1780.6,1780.1,1.0425]
[1745800746234,5.90136262,1780.6,1780.2,1.14704052]
[1745800746435,5.90136262,1780.6,1780.3,1.1457]
[1745800746636,5.90136262,1780.6,1780.4,0.00121432]
[1745800748642,5.90136262,1780.9,1780.8,5.61545372]
[1745800748825,5.90136262,1780.9,1780.8,10.44607757]
[1745800749305,5.90136262,1781.4,1781.1,1.0449]
[1745800749645,5.90136262,1781.4,1781.2,0.14579895]
[1745800749944,5.90136262,1781.4,1781.3,1.0449]
[1745800751438,5.90136262,1781.4,1781.2,0.14579895]
[1745800752155,5.90136262,1781.4,1780.9,0.9777]
[1745800752520,5.90136262,1781.4,1781.0,0.00083587]
[1745800752730,5.90136262,1781.4,1781.0,3.00083587]
[1745800753073,5.90136262,1781.4,1781.0,8.61479982]
[1745800753428,5.90136262,1781.4,1781.0,3.0]
[1745800753629,5.90136262,1781.4,1781.0,0.95926682]
[1745800753830,5.90136262,1781.4,1780.9,3.9777]
[1745800754073,5.90136262,1781.4,1781.0,0.00083587]
[1745800754229,5.90136262,1781.4,1780.9,3.9777]
[1745800754436,5.90136262,1781.4,1780.6,9.7736986]
[1745800754437,5.90136262,1781.4,1781.1,6.59205639]
[1745800754840,5.90136262,1781.4,1781.1,3.9777]
[1745800755046,5.90136262,1781.4,1781.1,0.9777]
[1745800761678,5.90136262,1781.4,1781.1,1.61437711]
[1745800761876,5.90136262,1781.9,1781.2,8.6139812]
[1745800762183,5.90136262,1781.9,1781.3,1.69257711]
[1745800762339,5.90136262,1781.9,1781.3,8.37964844]
[1745800763501,5.90136262,1781.9,1781.4,0.11946097]
[1745800764297,5.90136262,1781.9,1781.5,1.64197711]
[1745800764592,5.90136262,1781.9,1781.6,3.11958701]
[1745800766158,5.90136262,1781.9,1781.6,0.11958701]
[1745800770015,5.90136262,1781.9,1781.6,3.11958701]
[1745800770202,5.90136262,1781.9,1781.7,0.3119587]
[1745800770398,5.90136262,1782.2,1781.8,1.0522]
[1745800770707,5.90136262,1782.2,1781.8,4.16879876]
[1745800770908,5.90136262,1782.2,1781.8,9.78096961]
[1745800771078,5.90136262,1782.2,1781.9,0.97809696]
[1745800771278,5.90136262,1782.2,1782.0,0.11270254]
[1745800772211,5.90136262,1782.5,1782.1,7.31372529]
[1745800772382,5.90136262,1782.5,1782.2,3.0]
[1745800772712,5.90136262,1782.5,1782.4,3.0]
[1745800773009,5.90136262,1782.5,1782.4,9.75394577]
[1745800773205,5.90136262,1782.5,1782.4,4.14353285]
[1745800773708,5.90136262,1782.9,1782.5,1.0545]
[1745800774219,5.90136262,1782.9,1782.6,0.11219492]
[1745800780444,6.53803973,1782.9,1782.6,0.11219492]
[1745800780760,6.53803973,1782.9,1782.3,4.0223]
[1745800781148,5.90136262,1782.9,1782.3,4.0223]
[1745800782793,5.90136262,1782.9,1782.5,3.0]
[1745800783065,5.90136262,1782.9,1782.6,0.9981]
[1745800783229,5.90136262,1782.9,1782.4,0.9981]
[1745800787800,5.90136262,1782.9,1782.5,3.0]
[1745800787961,5.90136262,1782.9,1782.6,1.0432]
[1745800788485,5.90136262,1782.9,1782.4,1.0432]
[1745800790782,12.52203973,1782.8,1782.2,1.0018]
[1745800791292,12.52203973,1782.8,1781.9,1.0018]
[1745800791457,6.21092053,1782.7,1781.9,6.61366902]
[1745800791650,6.21092053,1782.7,1782.1,1.0018]
[1745800792050,5.90136262,1782.7,1782.1,4.0018]
[1745800792250,5.90136262,1782.7,1782.2,0.40018]
[1745800792550,5.90136262,1782.7,1782.1,1.0018]
[1745800793254,0.3096971,1782.6,1782.1,1.0018]
[1745800793782,5.90136262,1782.5,1781.9,1.0258]
[1745800793990,0.63667711,1782.4,1781.9,1.0258]
[1745800794209,5.90136262,1782.3,1781.9,1.0258]
[1745800799303,5.90136262,1782.3,1782.0,0.63667711]
[1745800799633,5.90136262,1782.3,1782.1,0.9827]
[1745800800785,5.90136262,1782.6,1782.3,1.0487]
[1745800801120,5.90136262,1782.6,1782.3,1.77834121]
[1745800802500,5.90136262,1782.6,1782.3,1.0487]
[1745800806203,5.90136262,1782.6,1782.1,0.9738]
[1745800808202,5.90136262,1782.6,1781.9,0.994]
[1745800808403,5.90136262,1782.5,1781.9,0.994]
[1745800808603,5.90136262,1782.4,1781.9,0.994]
[1745800809020,5.90136262,1782.4,1781.8,3.0]
[1745800809296,5.90136262,1782.4,1781.7,10.7256986]
[1745800809297,5.90136262,1782.3,1781.7,3.7476986]
[1745800809914,0.31032947,1782.2,1781.7,3.7476986]
[1745800810233,5.90136262,1782.1,1781.7,3.7476986]
[1745800811832,5.90136262,1782.1,1781.5,3.994]
[1745800812136,5.90136262,1782.1,1781.7,0.9737]
[1745800812437,5.90136262,1782.1,1781.7,3.9737]
[1745800813543,5.90136262,1782.1,1781.8,0.63667711]
[1745800814249,5.90136262,1782.1,1781.9,4.0316]
[1745800814545,5.90136262,1782.1,1782.0,1.03983711]
[1745800814747,5.90136262,1782.1,1782.0,0.40316]
[1745800815130,5.90136262,1782.1,1781.9,1.0316]
[1745800816022,5.90136262,1782.1,1781.9,4.0316]
[1745800816908,5.90136262,1782.1,1781.9,1.0316]
[1745800817603,5.90136262,1782.1,1781.9,6.64354197]
[1745800817805,5.90136262,1782.1,1781.9,4.0316]
[1745800818007,5.90136262,1782.1,1782.0,0.40316]
[1745800824466,5.90136262,1782.8,1782.2,5.61074782]
[1745800824608,5.90136262,1782.8,1782.4,0.63667711]
[1745800824947,5.90136262,1782.8,1782.5,3.0]
[1745800825125,5.90136262,1782.8,1782.4,0.63667711]
[1745800825739,5.90136262,1782.8,1782.4,1.66598885]
[1745800827950,5.90136262,1782.8,1782.4,1.02931174]
[1745800828149,5.90136262,1782.7,1781.8,3.7476986]
[1745800828351,6.53803973,1782.6,1781.8,3.7476986]
[1745800828818,6.53803973,1782.6,1782.2,3.7476986]
[1745800829017,12.50503973,1782.6,1782.2,3.7476986]
[1745800829218,0.31018747,1782.5,1782.2,3.7476986]
[1745800830920,0.31018747,1782.5,1781.8,3.0]
[1745800831133,5.90136262,1782.4,1781.8,3.0]
[1745800831669,5.90136262,1782.4,1781.9,0.23968062]
[1745800833163,5.90136262,1782.3,1781.9,0.23968062]
[1745800833556,5.90136262,1782.3,1781.6,9.36060149]
[1745800833753,5.90136262,1782.3,1782.0,0.24330894]
[1745800833964,5.90136262,1782.3,1781.6,9.36060149]
[1745800834143,5.90136262,1782.3,1781.7,0.24311997]
[1745800834343,6.53803973,1782.2,1781.7,0.24311997]
[1745800834959,0.3102878,1782.1,1781.7,0.24311997]
[1745800835172,5.90136262,1782.0,1781.7,0.24311997]
[1745800835988,6.53803973,1782.0,1781.7,0.24311997]
[1745800836147,12.50603973,1782.0,1781.7,0.24311997]
[1745800836346,0.31007267,1781.9,1781.7,0.24311997]
[1745800836545,0.31007267,1781.9,1781.5,3.7476986]
[1745800836946,0.31007267,1781.9,1781.6,0.22276407]
[1745800837743,11.86936262,1782.0,1781.6,0.22276407]
[1745800837944,5.90136262,1782.0,1781.6,0.22276407]
[1745800839577,5.90136262,1782.0,1781.6,3.85944118]
[1745800839755,5.90136262,1782.0,1781.6,9.47224814]
[1745800839949,5.90136262,1782.0,1781.6,15.08500018]
[1745800840171,5.90136262,1782.0,1781.8,3.0]
[1745800840690,5.90136262,1782.0,1781.9,0.22489873]
[1745800842179,5.90136262,1782.0,1781.7,1.0085]
[1745800842493,5.90136262,1782.0,1781.8,0.22483574]
[1745800842696,5.90136262,1782.0,1781.6,3.0]
[1745800842858,5.90136262,1782.0,1781.9,0.22496349]
[1745800843171,5.90136262,1782.0,1781.6,3.0]
[1745800843355,5.90136262,1782.0,1781.5,3.7476986]
[1745800843559,5.90136262,1781.9,1781.5,3.7476986]
[1745800843867,6.53803973,1781.8,1781.5,3.34937309]
[1745800844068,6.53803973,1781.8,1781.0,4.88900429]
[1745800844069,5.90136262,1781.3,1781.0,4.32732304]
[1745800844268,0.63667711,1781.1,1781.0,4.32732304]
[1745800844567,6.81756479,1781.1,1781.0,4.32732304]
[1745800844781,6.81756479,1781.1,1780.8,4.32732304]
[1745800844958,0.63667711,1780.9,1780.8,4.32732304]
[1745800845161,6.53803973,1780.9,1780.8,4.32732304]
[1745800845595,41.81862717,1780.9,1780.8,4.32732304]
[1745800845889,32.93246662,1780.9,1780.8,4.32732304]
[1745800846094,11.85236262,1780.9,1780.8,4.32732304]
[1745800846396,39.75496362,1780.9,1780.8,4.32732304]
[1745800846702,39.59773462,1780.9,1780.8,4.32732304]
[1745800847068,11.85236262,1780.9,1780.8,4.32732304]
[1745800847268,15.00255717,1780.9,1780.8,4.32732304]
[1745800847797,39.99773462,1780.9,1780.8,4.32732304]
[1745800848171,11.85236262,1780.9,1780.8,4.32732304]
[1745800848719,39.28303462,1780.9,1780.8,4.32732304]
[1745800849015,39.28303462,1780.9,1780.5,6.00301719]
[1745800849217,11.85436262,1780.9,1780.0,1.0085]
[1745800849384,5.90136262,1780.8,1780.0,1.0085]
[1745800850209,5.90136262,1780.8,1780.1,3.0]
[1745800851411,5.90136262,1780.8,1780.0,1.0085]
[1745800851709,5.90136262,1780.8,1780.1,0.19805468]
[1745800852586,5.90136262,1780.7,1780.1,0.19805468]
[1745800853308,5.90136262,1780.7,1780.1,3.19805468]
[1745800853509,5.90136262,1780.7,1780.2,5.93696886]
[1745800853674,5.90136262,1780.7,1780.4,0.9784]
[1745800854074,5.90136262,1780.7,1780.5,0.19830709]
[1745800857813,5.90136262,1780.7,1780.5,8.81456668]
[1745800859017,5.90136262,1780.7,1780.5,0.19830709]
[1745800859188,5.90136262,1780.7,1780.5,1.17763162]
[1745800859387,5.90136262,1780.7,1780.6,3.0]
[1745800859607,5.90136262,1780.7,1780.6,3.20685923]
[1745800860404,5.90136262,1781.1,1780.6,3.20685923]
[1745800860617,5.90136262,1781.1,1780.7,6.64852236]
[1745800860804,5.90136262,1781.1,1780.8,0.86600128]
[1745800861115,5.90136262,1781.1,1780.8,0.20114904]
[1745800862008,5.90136262,1781.1,1780.4,1.0328]
[1745800862326,5.90136262,1781.1,1780.5,0.20050601]
[1745800864216,5.90136262,1781.0,1780.5,0.20050601]
[1745800864733,5.90136262,1781.0,1780.7,3.0]
[1745800864918,5.90136262,1781.0,1780.8,0.3]
[1745800865223,5.90136262,1781.0,1780.8,0.50160286]
[1745800868241,5.90136262,1781.2,1780.9,1.03]
[1745800868527,5.90136262,1781.2,1780.9,1.23166593]
[1745800871914,5.90136262,1781.2,1781.0,3.0]
[1745800872129,5.90136262,1781.2,1781.0,4.18425844]
[1745800872331,5.90136262,1781.2,1781.0,1.18425844]
[1745800872524,5.90136262,1781.2,1781.0,0.19958982]
[1745800873911,5.90136262,1781.2,1780.7,1.046]
[1745800874336,5.90136262,1781.2,1780.8,0.19693587]
[1745800874717,0.30966558,1781.1,1780.8,0.19693587]
[1745800875848,5.90136262,1781.0,1780.8,0.19693587]
[1745800876649,5.90136262,1781.0,1780.9,0.19745263]
[1745800877158,5.90136262,1781.0,1780.5,6.9867]
[1745800877315,5.90136262,1781.0,1780.9,0.19745263]
[1745800877516,6.21115331,1781.0,1780.5,6.9867]
[1745800877716,6.21115331,1781.0,1780.9,0.19745263]
[1745800878239,5.90136262,1781.0,1780.9,3.19745263]
[1745800878465,5.90136262,1781.0,1780.9,1.17890121]
[1745800878633,5.90136262,1781.0,1780.9,0.19745263]
[1745800878823,5.90136262,1781.0,1780.8,9.61704969]
[1745800879151,5.90136262,1781.0,1780.9,0.197323]
[1745800879355,5.90136262,1781.0,1780.8,4.0016]
[1745800879552,5.90136262,1781.0,1780.9,0.197323]
[1745800879921,5.90136262,1781.0,1780.8,1.0016]
[1745800880240,5.90136262,1781.0,1780.9,0.197323]
[1745800880473,5.90136262,1781.0,1780.8,1.0016]
[1745800880761,5.90136262,1781.0,1780.9,0.19686931]
[1745800881327,5.90136262,1781.0,1780.6,0.998]
[1745800881529,5.90136262,1781.0,1780.9,0.18094258]
[1745800882028,5.90136262,1781.0,1780.6,3.998]
[1745800882346,5.90136262,1781.0,1780.7,0.18081645]
[1745800889061,5.90136262,1781.0,1780.8,3.0]
[1745800889362,5.90136262,1781.0,1780.8,3.18185033]
[1745800889564,5.90136262,1781.0,1780.8,0.81947041]
[1745800889742,5.90136262,1781.0,1780.9,9.61883841]
[1745800889934,5.90136262,1781.0,1780.9,9.8007518]
[1745800890133,5.90136262,1781.0,1780.9,11.40613276]
[1745800890629,5.90136262,1781.0,1780.9,5.79099435]
[1745800891559,5.90136262,1781.0,1780.9,11.40613276]
[1745800893460,11.84036262,1781.7,1781.0,3.0]
[1745800893667,11.84036262,1781.7,1781.1,0.18158643]
[1745800894662,0.31040278,1781.6,1781.1,0.18158643]
[1745800895535,0.31040278,1781.5,1781.1,0.18158643]
[1745800896371,0.31040278,1781.4,1781.1,0.18158643]
[1745800896966,0.31040278,1781.3,1781.1,0.18158643]
[1745800897368,0.31040278,1781.3,1781.1,0.49974507]
[1745800897957,0.31040278,1781.6,1781.1,0.49974507]
[1745800898341,0.31040278,1781.6,1781.1,0.18158643]
[1745800898667,0.31040278,1781.5,1781.1,0.18158643]
[1745800899472,0.31040278,1781.4,1781.1,0.18158643]
[1745800901776,0.31040278,1781.4,1780.9,1.0037]
[1745800901983,0.31040278,1781.4,1781.2,0.18067881]
[1745800902142,5.90136262,1781.3,1780.7,0.9918]
[1745800902773,5.90136262,1781.3,1780.7,1.39098]
[1745800903678,5.90136262,1781.3,1780.7,7.00651555]
[1745800904241,5.90136262,1781.3,1780.7,0.39918]
[1745800904449,0.63762008,1781.1,1780.5,0.9609]
[1745800905493,0.31040278,1781.0,1780.6,0.00108814]
[1745800906691,0.63762008,1781.1,1780.6,0.00108814]
[1745800906692,0.31040278,1780.9,1780.6,0.00108814]
[1745800906922,5.90136262,1780.8,1780.6,0.00108814]
[1745800910725,5.90136262,1780.8,1780.6,3.00108814]
[1745800910878,5.90136262,1780.8,1780.7,0.30010881]
[1745800911080,5.90136262,1780.8,1780.7,0.30113387]
[1745800913731,5.90136262,1781.3,1780.7,10.74784851]
[1745800915036,5.90136262,1781.3,1781.0,3.0]
[1745800915413,5.90136262,1781.3,1781.1,0.1515788]
[1745800915610,5.90136262,1781.3,1781.1,0.46673668]
[1745800916200,5.90136262,1781.6,1781.2,1.0357]
[1745800916435,5.90136262,1781.6,1781.3,0.63762008]
[1745800916796,5.90136262,1781.6,1781.4,1.0389]
[1745800917000,5.90136262,1781.6,1781.5,3.0]
[1745800917235,5.90136262,1782.0,1781.5,3.96522503]
[1745800917444,0.30994827,1781.9,1781.5,3.96522503]
[1745800917742,0.30994858,1781.9,1781.5,3.96522503]
[1745800918540,0.63762008,1781.8,1781.2,1.0269]
[1745800918904,0.30992347,1781.8,1781.2,1.0269]
[1745800919100,6.5389827,1782.0,1781.2,1.0269]
[1745800919353,0.30979642,1781.9,1781.2,1.0269]
[1745800919640,0.30976048,1781.8,1781.2,1.0269]
[1745800920202,0.30976048,1781.7,1781.2,1.0269]
[1745800920545,0.30976048,1781.9,1781.2,1.0269]
[1745800921102,0.30976048,1781.8,1781.2,1.0269]
[1745800921843,0.30976048,1781.7,1781.2,1.0269]
[1745800922554,6.5389827,1781.6,1781.1,3.1515788]
[1745800922724,5.90136262,1781.5,1781.1,3.1515788]
[1745800925590,0.63762008,1781.2,1781.1,0.1515788]
[1745800925746,6.5389827,1781.2,1781.1,0.1515788]
[1745800925959,6.5389827,1781.2,1779.9,6.87476281]
[1745800926129,32.062505,1781.4,1780.0,1.26751829]
[1745800926130,0.63762008,1780.5,1780.0,1.26751829]
[1745800926319,5.90136262,1780.4,1780.2,0.00134052]
[1745800926514,5.90136262,1780.4,1779.9,6.87476281]
[1745800926709,5.90136262,1780.4,1780.3,0.00127741]
[1745800926911,5.90136262,1780.4,1779.9,6.87476281]
[1745800927145,5.90136262,1780.4,1780.2,0.00134052]
[1745800927323,5.90136262,1780.4,1779.9,6.87476281]
[1745800927523,5.90136262,1780.3,1780.2,0.00134052]
[1745800927719,5.90136262,1780.3,1779.9,6.87476281]
[1745800927925,5.90136262,1780.3,1780.2,0.00134052]
[1745800928125,5.90136262,1780.3,1779.9,6.87476281]
[1745800928353,5.90136262,1780.3,1780.2,0.00134052]
[1745800928552,6.5389827,1780.3,1780.2,0.12509746]
[1745800928728,6.5389827,1780.3,1779.9,6.87476281]
[1745800928910,6.5389827,1780.3,1780.2,0.00134052]
[1745800929116,6.5389827,1780.3,1780.2,0.13201746]
[1745800929349,6.5389827,1780.3,1779.9,6.87476281]
[1745800929651,6.5389827,1780.3,1780.2,0.00134052]
[1745800929950,5.90136262,1780.3,1779.9,6.87476281]
[1745800930156,5.90136262,1780.3,1780.2,0.00134052]
[1745800930331,5.90136262,1780.3,1780.2,0.13201746]
[1745800930654,5.90136262,1780.3,1779.8,0.9743]
[1745800930846,5.90136262,1780.3,1780.2,0.00134052]
[1745800931023,5.90136262,1780.3,1779.9,0.1318281]
[1745800933558,5.90136262,1780.3,1780.0,0.00146675]
[1745800935060,5.90136262,1780.3,1780.1,1.0361]
[1745800935354,5.90136262,1780.3,1780.2,0.00134052]
[1745800935564,5.90136262,1780.3,1780.2,0.14029373]
[1745800935857,5.90136262,1780.3,1780.1,1.0361]
[1745800941255,5.90136262,1780.3,1780.1,1.43971]
[1745800942340,5.90136262,1780.3,1780.1,1.0361]
[1745800943137,5.90136262,1780.6,1780.1,1.0361]
[1745800943774,5.90136262,1780.6,1780.2,0.13861148]
[1745800943974,5.90136262,1780.6,1780.1,1.0361]
[1745800944150,5.90136262,1780.6,1780.2,0.13861148]
[1745800944353,5.90136262,1780.6,1780.1,1.0361]
[1745800944683,5.90136262,1780.6,1780.2,0.13861148]
[1745800945042,5.90136262,1780.6,1780.1,6.65375193]
[1745800945246,5.90136262,1780.6,1780.3,0.13867458]
[1745800945584,5.90136262,1780.6,1780.4,0.13873768]
[1745800945770,5.90136262,1780.6,1780.1,1.0361]
[1745800945971,5.90136262,1780.6,1780.2,0.13861148]
[1745800946173,5.90136262,1780.6,1780.1,1.0361]
[1745800946375,5.90136262,1780.6,1780.2,0.13861148]
[1745800946555,5.90136262,1780.6,1780.1,1.43971]
[1745800946878,5.90136262,1780.6,1780.2,0.13861148]
[1745800947386,5.90136262,1780.6,1780.3,0.13867458]
[1745800947585,5.90136262,1780.6,1780.1,1.43971]
[1745800947761,5.90136262,1780.6,1780.2,0.13861148]
[1745800948252,5.90136262,1780.6,1780.1,1.0361]
[1745800948585,5.90136262,1780.6,1780.2,0.13861148]
[1745800948784,5.90136262,1780.6,1780.1,1.0361]
[1745800948962,5.90136262,1780.6,1780.2,0.13861148]
[1745800949164,5.90136262,1780.5,1780.1,1.0361]
[1745800949553,6.5389827,1780.5,1780.2,0.13861148]
[1745800949754,6.5389827,1780.5,1779.8,1.0564]
[1745800949953,6.5389827,1780.5,1779.9,0.13842212]
[1745800950287,0.63762008,1780.3,1779.9,0.13842212]
[1745800950446,0.63762008,1780.1,1779.9,0.13842212]
[1745800950647,5.90136262,1780.0,1779.9,0.13842212]
[1745800951080,5.90136262,1780.0,1779.6,1.0326]
[1745800951283,5.90136262,1780.0,1779.9,0.13816327]
[1745800951455,5.90136262,1780.0,1779.6,1.0326]
[1745800951656,5.90136262,1780.0,1779.9,0.13816327]
[1745800951868,5.90136262,1780.0,1779.6,1.0326]
[1745800952074,5.90136262,1780.0,1779.9,0.13816327]
[1745800952373,5.90136262,1780.0,1779.6,1.0326]
[1745800952573,5.90136262,1780.0,1779.7,0.138037]
[1745800952760,5.90136262,1780.0,1779.6,1.0326]
[1745800952962,5.90136262,1780.0,1779.7,0.138037]
[1745800953258,5.90136262,1780.0,1779.8,0.14042972]
[1745800953462,5.90136262,1779.9,1779.8,0.14042972]
[1745800953661,8.7228427,1779.9,1779.8,0.14042972]
[1745800953898,8.7228427,1779.9,1779.3,1.0005]
[1745800953899,6.5389827,1779.9,1779.3,1.0005]
[1745800954204,5.90136262,1779.8,1779.4,0.14202273]
[1745800954700,5.90136262,1779.8,1779.4,6.39945503]
[1745800954868,5.90136262,1779.8,1779.5,10.25998521]
[1745800955070,5.90136262,1779.8,1779.5,1.6404455]
[1745800955283,5.90136262,1779.8,1779.5,4.0005]
[1745800955661,5.90136262,1779.8,1779.5,1.0005]
[1745800956681,5.90136262,1779.8,1779.4,0.14202273]
[1745800960982,5.90136262,1779.8,1779.5,0.984]
[1745800961184,5.90136262,1779.8,1779.6,0.14901334]
[1745800963899,5.90136262,1779.7,1779.6,0.14901334]
[1745800967129,5.90136262,1779.7,1779.0,0.9977]
[1745800967427,5.90136262,1779.7,1779.1,0.14862486]
[1745800969933,6.5389827,1779.7,1779.1,0.14862486]
[1745800972623,5.90136262,1779.6,1779.1,0.14862486]
[1745800972938,0.30889781,1779.5,1779.1,0.14862486]
[1745800973103,5.90136262,1779.4,1779.1,0.14862486]
[1745800973308,5.90136262,1779.4,1779.2,1.0126]
[1745800973520,5.90136262,1779.4,1779.3,0.15218652]
[1745800979719,5.90136262,1779.4,1779.3,7.40179431]
[1745800979921,5.90136262,1779.4,1779.3,11.14197374]
[1745800980245,5.893,1779.9,1779.6,0.9918]
[1745800980441,11.79436262,1779.9,1779.6,0.9918]
[1745800980627,11.79436262,1779.9,1779.7,0.00165615]
[1745800980829,11.79436262,1779.9,1779.6,0.9918]
[1745800981014,11.79436262,1779.9,1779.7,0.00165615]
[1745800981217,11.79436262,1779.9,1779.6,0.9918]
[1745800981525,11.79436262,1779.9,1779.7,0.00165615]
[1745800981747,11.79436262,1779.9,1779.6,1.39098]
[1745800981953,11.79436262,1779.9,1779.7,0.00165615]
[1745800982158,11.79436262,1779.9,1779.6,1.39098]
[1745800982456,5.90136262,1779.9,1779.7,0.00165615]
[1745800982858,5.90136262,1779.9,1779.6,1.39098]
[1745800983163,5.90136262,1779.9,1779.7,5.62056671]
[1745800983363,5.90136262,1779.9,1779.8,1.60895667]
[1745800983663,5.90136262,1779.9,1779.8,7.22915851]
[1745800983863,5.90136262,1780.2,1779.9,5.6179826]
[1745800984046,5.90136262,1780.2,1780.1,0.63762008]
[1745800984240,5.90136262,1780.7,1780.2,1.0092]
[1745800984436,5.90136262,1780.7,1780.2,10.35285317]
[1745800984740,5.90136262,1780.7,1780.5,1.0092]
[1745800985063,5.90136262,1780.7,1780.6,0.00108814]
[1745800985975,5.90136262,1780.7,1780.3,1.0092]
[1745800986263,5.90136262,1780.7,1780.4,0.00121432]
[1745800988625,5.90136262,1780.7,1780.5,0.13899552]
[1745800988824,5.90136262,1780.7,1780.6,0.00108814]
[1745800989236,28.79547362,1780.7,1779.9,4.0092]
[1745800989449,12.4299827,1780.6,1779.9,4.0092]
[1745800990054,12.4299827,1780.6,1779.9,5.61748407]
[1745800990477,12.4299827,1780.6,1779.9,1.0092]
[1745800990691,0.63762008,1780.4,1779.7,1.0369]
[1745800991380,0.63762008,1780.0,1779.4,0.979]
[1745800991595,5.90136262,1779.9,1779.4,0.979]
[1745800991770,5.90136262,1779.8,1779.1,5.62065532]
[1745800991970,5.90136262,1779.8,1779.2,0.9563]
[1745800992493,5.90136262,1779.8,1779.3,0.00190879]
[1745800994046,5.90136262,1779.8,1779.3,3.00190879]
[1745800994246,5.90136262,1779.8,1779.3,0.00190879]
[1745800995287,5.90136262,1779.7,1779.3,0.00190879]
[1745800997380,5.90136262,1779.7,1779.4,0.00184562]
[1745800997545,5.90136262,1779.7,1779.0,9.57653208]
[1745800997749,5.90136262,1779.6,1779.1,0.00203515]
[1745801003592,5.90136262,1779.6,1779.2,0.14089328]
[1745801003754,5.90136262,1779.6,1779.3,0.00190879]
[1745801005757,6.5389827,1779.6,1779.3,0.00190879]
[1745801005990,5.90136262,1779.5,1779.3,0.00190879]
[1745801006193,42.4089347,1779.4,1779.3,0.00190879]
[1745801006366,20.45515066,1779.4,1778.5,5.875]
[1745801006566,5.90136262,1779.3,1778.5,3.68644]
[1745801006784,5.875,1779.2,1778.5,9.9467385]
[1745801007092,5.875,1779.2,1778.6,5.62238434]
[1745801007254,5.875,1779.2,1778.7,1.024]
[1745801007453,5.875,1779.2,1778.8,0.00222474]
[1745801010700,5.90136262,1779.1,1778.8,0.00222474]
[1745801011194,5.875,1779.2,1778.5,1.04]
[1745801011195,5.90136262,1779.0,1778.5,1.04]
[1745801011394,5.90136262,1778.9,1778.6,0.00235117]
[1745801013066,5.90136262,1778.9,1778.3,4.0337]
[1745801013266,5.90136262,1778.9,1778.7,0.00228796]
[1745801013503,5.90136262,1778.9,1778.3,9.65703982]
[1745801013708,5.90136262,1778.9,1778.8,0.00222474]
[1745801014190,5.90136262,1778.9,1778.3,9.65703982]
[1745801014399,5.90136262,1778.9,1778.5,3.0]
[1745801014704,5.90136262,1778.9,1778.6,0.00235117]
[1745801015909,5.90136262,1778.9,1778.7,0.9979]
[1745801016301,5.90136262,1778.9,1778.8,0.00222474]
[1745801016804,5.90136262,1778.9,1778.5,9.62474703]
[1745801016969,5.90136262,1778.9,1778.6,0.96482587]
[1745801017170,5.90136262,1778.9,1778.6,6.58718833]
[1745801017618,5.90136262,1778.9,1778.6,0.96482587]
[1745801017973,5.90136262,1778.9,1778.6,0.00235117]
[1745801018709,5.90136262,1778.9,1778.7,0.15527554]
[1745801019409,5.90136262,1778.9,1778.7,0.10527554]
[1745801019622,5.90136262,1778.9,1778.7,0.15117209]
[1745801021928,5.90136262,1779.2,1778.8,1.61222008]
[1745801022419,5.90136262,1779.2,1778.9,0.15130009]
[1745801022625,5.90136262,1779.2,1778.8,8.27239035]
[1745801022792,5.90136262,1779.2,1778.9,0.15346163]
[1745801028422,5.90136262,1779.2,1778.9,5.77472444]
[1745801029023,5.90136262,1779.2,1778.9,0.15346163]
[1745801030098,5.90136262,1779.2,1778.9,5.77479468]
[1745801030321,5.90136262,1779.2,1779.0,0.57747947]
[1745801030523,5.90136262,1779.2,1779.1,0.9079]
[1745801030827,5.90136262,1779.2,1779.1,0.15184188]
[1745801034034,10.06189662,1779.2,1779.1,0.15184188]
[1745801034432,10.1237109,1779.2,1779.1,0.15184188]
[1745801034605,6.2122109,1779.2,1779.1,0.15184188]
[1745801040638,39.8880569,1779.2,1779.1,0.15184188]
[1745801040938,6.2122109,1779.2,1779.1,0.15184188]
[1745801042606,6.2122109,1779.2,1779.1,1.05244188]
[1745801043420,5.90136262,1779.2,1779.1,1.05244188]
[1745801044016,5.89846502,1779.2,1779.1,1.05244188]
[1745801046150,5.89846502,1779.2,1779.1,0.15184188]
[1745801046151,6.20947275,1779.2,1779.1,0.15184188]
[1745801050142,9.12251775,1779.2,1779.1,0.15184188]
[1745801050716,14.76191775,1779.2,1779.1,0.15184188]
[1745801052255,14.52364875,1779.2,1779.1,0.15184188]
[1745801052856,14.88837275,1779.2,1779.1,0.15184188]
[1745801053355,18.88837275,1779.2,1779.1,0.15184188]
[1745801053956,18.88837275,1779.2,1778.6,3.76115823]
[1745801054145,16.06847275,1779.2,1778.6,3.76115823]
[1745801054343,0.31100773,1779.1,1778.7,0.1519714]
[1745801054718,5.89846502,1779.0,1778.7,0.1519714]
[1745801055253,0.31100773,1778.9,1778.7,0.1519714]
[1745801055955,0.31100773,1778.8,1778.7,0.1519714]
[1745801056119,6.20947275,1778.8,1778.7,0.1519714]
[1745801056654,5.89846502,1778.8,1778.7,0.1519714]
[1745801061055,6.20924536,1778.8,1778.7,0.1519714]
[1745801061898,5.89846502,1778.8,1778.7,0.1519714]
[1745801063387,6.20925375,1778.8,1778.7,0.1519714]
[1745801065004,5.89846502,1778.8,1778.7,0.1519714]
[1745801070896,5.89846502,1778.8,1778.7,4.0413714]
[1745801071095,17.51062008,1779.6,1778.9,0.8894]
[1745801071096,2.74438469,1779.3,1778.9,0.8894]
[1745801071283,2.74438469,1779.3,1779.1,0.8894]
[1745801073208,2.74438469,1779.3,1779.0,0.1545633]
[1745801075818,2.74438469,1779.3,1779.1,0.9169]
[1745801075972,2.74438469,1779.3,1779.1,1.65194854]
[1745801076268,2.74438469,1779.3,1779.1,0.00203515]
[1745801078772,2.74438469,1779.3,1779.2,0.13417608]
[1745801079087,3.05501535,1779.3,1779.2,0.13417608]
[1745801079662,3.05501535,1779.3,1779.2,0.13614805]
[1745801085773,2.74438469,1779.3,1779.2,0.13614805]
[1745801086907,2.74438469,1779.3,1779.2,1.04484805]
[1745801094710,2.74438469,1779.3,1779.2,1.52544868]
[1745801097534,2.74438469,1779.3,1779.2,1.04484805]
[1745801100428,2.74438469,1779.6,1779.2,5.75654358]
[1745801100738,2.74438469,1779.6,1779.3,0.9051]
[1745801100942,2.74438469,1779.6,1779.4,0.12324962]